fUSD/lending_fUSD_20250930
["ID","MTS","AMOUNT","RATE_DAILY","PERIOD"]
[388567662,1759243862675,-500.0,0.00019178,2]
[388567663,1759243862684,-151.0,0.00019178,2]
[388567664,1759243862694,-872.72,0.00019178,2]
[388567665,1759243862704,-1941.79,0.00019178,2]
[388567666,1759243862713,-151.0,0.00019178,2]
[388567667,1759243862723,-500.0,0.00019178,2]
[388567668,1759243862732,-151.0,0.00019178,2]
[388567669,1759243862742,-1762.85,0.00019178,2]
[388567670,1759243862752,-151.0,0.00019178,2]
[388567671,1759243862762,-5950.02,0.00019178,2]
[388567672,1759243862771,-4706.84,0.00019178,2]
[388567673,1759243862780,-500.0,0.00019178,2]
[388567674,1759243862790,-4729.75,0.00019178,2]
[388567675,1759243862799,-500.0,0.00019178,2]
[388567676,1759243862808,-500.0,0.00019178,2]
[388567677,1759243862817,-500.0,0.00019178,2]
[388567678,1759243862826,-500.0,0.00019178,2]
[388567679,1759243862835,-500.0,0.00019178,2]
[388567680,1759243862845,-787.29,0.00019178,2]
[388567681,1759243862854,-3419.59,0.00019178,2]
[388567682,1759243862863,-1143.162969,0.00019178,2]
[388567683,1759243862872,-500.0,0.00019178,2]
[388567684,1759243862882,-1143.162969,0.00019178,2]
[388567685,1759243862891,-500.0,0.00019178,2]
[388567686,1759243862901,-500.0,0.00019178,2]
[388567687,1759243862910,-151.0,0.00019178,2]
[388567688,1759243862920,-1143.162969,0.00019178,2]
[388567689,1759243862929,-1687.72,0.00019178,2]
[388567690,1759243862939,-5002.0,0.00019178,2]
[388567691,1759243862949,-1154.61,0.00019178,2]
[388567692,1759243862959,-500.0,0.00019178,2]
[388567693,1759243862970,-521.13,0.00019178,2]
[388567694,1759243862979,-8599.07,0.00019178,2]
[388567695,1759243862989,-151.0,0.00019178,2]
[388567696,1759243862999,-2467.33,0.00019178,2]
[388567697,1759243863008,-1143.162969,0.00019178,2]
[388567698,1759243863018,-500.0,0.00019178,2]
[388567699,1759243863027,-4836.52,0.00019178,2]
[388567700,1759243863042,-2386.57,0.00019178,2]
[388567701,1759243863052,-151.0,0.00019178,2]
[388567702,1759243863061,-432.41926256,0.00019178,2]
[388567703,1759243863072,-151.0,0.00019178,2]
[388567704,1759243863081,-500.0,0.00019178,2]
[388567705,1759243863091,-3713.1,0.00019178,2]
[388567706,1759243863101,-673.89,0.00019178,2]
[388567707,1759243863110,-3515.11,0.00019178,2]
[388567708,1759243863120,-500.0,0.00019178,2]
[388567709,1759243863129,-500.0,0.00019178,2]
[388567710,1759243863139,-3866.6,0.00019178,2]
[388567711,1759243863148,-1695.32,0.00019178,2]
[388567712,1759243863157,-500.0,0.00019178,2]
[388567713,1759243863166,-169.445697,0.00019178,2]
[388567714,1759243863176,-730.11,0.00019178,2]
[388567715,1759243863186,-11248.94,0.00019178,2]
[388567716,1759243863195,-4459.74,0.00019178,2]
[388567717,1759243863204,-3163.57,0.00019178,2]
[388567718,1759243863570,-500.0,0.00019178,2]
[388567719,1759243863601,-500.0,0.00019178,2]
[388567720,1759243863611,-169.445697,0.00019178,2]
[388567721,1759243863620,-2792.99,0.00019178,2]
[388567722,1759243863630,-247.413347,0.00019178,2]
[388567723,1759243863641,-11810.4,0.00019178,2]
[388567724,1759243863651,-2771.3,0.00019178,2]
[388567725,1759243863660,-169.445697,0.00019178,2]
[388567726,1759243863669,-500.0,0.00019178,2]
[388567727,1759243863679,-199.85367,0.00019178,2]
[388567728,1759243863689,-247.413347,0.00019178,2]
[388567729,1759243863699,-3529.57,0.00019178,2]
[388567730,1759243863709,-497.06121672,0.00019178,2]
[388567731,1759243863719,-500.0,0.00019178,2]
[388567732,1759243863729,-3118.0,0.00019178,2]
[388567733,1759243863738,-169.445697,0.00019178,2]
[388567734,1759243863749,-199.85367,0.00019178,2]
[388567735,1759243863759,-500.0,0.00019178,2]
[388567736,1759243863769,-500.0,0.00019178,2]
[388567737,1759243863780,-247.413347,0.00019178,2]
[388567738,1759243863791,-151.0,0.00019178,2]
[388567739,1759243863801,-500.0,0.00019178,2]
[388567740,1759243863811,-500.0,0.00019178,2]
[388567741,1759243863821,-199.85367,0.00019178,2]
[388567742,1759243863832,-151.0,0.00019178,2]
[388567743,1759243863843,-247.413347,0.00019178,2]
[388567744,1759243863853,-500.0,0.00019178,2]
[388567745,1759243863863,-500.0,0.00019178,2]
[388567746,1759243863874,-151.0,0.00019178,2]
[388567747,1759243863884,-500.0,0.00019178,2]
[388567748,1759243863898,-199.85367,0.00019178,2]
[388567749,1759243863908,-151.0,0.00019178,2]
[388567750,1759243863919,-158.628354,0.00019178,2]
[388567751,1759243863929,-151.0,0.00019178,2]
[388567752,1759243863940,-151.0,0.00019178,2]
[388567753,1759243863950,-5791.96,0.00019178,2]
[388567754,1759243863960,-871.1,0.00019178,2]
[388567755,1759243863969,-500.0,0.00019178,2]
[388567756,1759243863979,-3604.25,0.00019178,2]
[388567757,1759243863989,-5786.2,0.00019178,2]
[388567758,1759243864000,-178.243114,0.00019178,2]
[388567759,1759243864010,-500.0,0.00019178,2]
[388567760,1759243864020,-1515.69,0.00019178,2]
[388567761,1759243864031,-500.0,0.00019178,2]
[388567762,1759243864043,-151.0,0.00019178,2]
[388567763,1759243864053,-1390.21,0.00019178,2]
[388567764,1759243864063,-599.39,0.00019178,2]
[388567765,1759243864072,-500.0,0.00019178,2]
[388567766,1759243864082,-178.243114,0.00019178,2]
[388567767,1759243864091,-704.45,0.00019178,2]
[388567768,1759243864101,-151.0,0.00019178,2]
[388567769,1759243864113,-259.295793,0.00019178,2]
[388567770,1759243864123,-500.0,0.00019178,2]
[388567771,1759243864133,-178.243114,0.00019178,2]
[388567772,1759243864144,-151.0,0.00019178,2]
[388567773,1759243864154,-6882.39,0.00019178,2]
[388567774,1759243864164,-259.295793,0.00019178,2]
[388567775,1759243864173,-178.243114,0.00019178,2]
[388567776,1759243864183,-293.7114525,0.00019178,2]
[388567777,1759243864193,-151.0,0.00019178,2]
[388567778,1759243864205,-259.295793,0.00019178,2]
[388567779,1759243864214,-500.0,0.00019178,2]
[388567780,1759243864224,-500.0,0.00019178,2]
[388567781,1759243864233,-1406.64,0.00019178,2]
[388567782,1759243864243,-500.0,0.00019178,2]
[388567783,1759243864255,-259.295793,0.00019178,2]
[388567784,1759243864264,-500.0,0.00019178,2]
[388567785,1759243864274,-1714.02,0.00019178,2]
[388567786,1759243864283,-500.0,0.00019178,2]
[388567787,1759243864293,-500.0,0.00019178,2]
[388567788,1759243864303,-2256.46,0.00019178,2]
[388567789,1759243864313,-1714.02,0.00019178,2]
[388567790,1759243864323,-1714.02,0.00019178,2]
[388567791,1759243864333,-188.318043,0.00019178,2]
[388567792,1759243864342,-738.87,0.00019178,2]
[388567793,1759243864352,-1714.02,0.00019178,2]
[388567794,1759243864361,-1714.02,0.00019178,2]
[388567795,1759243864371,-1714.02,0.00019178,2]
[388567796,1759243864380,-964.74,0.00019178,2]
[388567797,1759243864390,-500.0,0.00019178,2]
[388567798,1759243864399,-1714.02,0.00019178,2]
[388567799,1759243864409,-2765.4,0.00019178,2]
[388567800,1759243864419,-500.0,0.00019178,2]
[388567801,1759243864428,-1714.02,0.00019178,2]
[388567802,1759243864439,-1714.02,0.00019178,2]
[388567803,1759243864448,-500.0,0.00019178,2]
[388567804,1759243864459,-500.0,0.00019178,2]
[388567805,1759243864468,-1714.02,0.00019178,2]
[388567806,1759243864478,-188.318043,0.00019178,2]
[388567807,1759243864488,-1714.02,0.00019178,2]
[388567808,1759243864501,-899.45,0.00019178,2]
[388567809,1759243864511,-1714.02,0.00019178,2]
[388567810,1759243864520,-1235.06,0.00019178,2]
[388567811,1759243864530,-500.0,0.00019178,2]
[388567812,1759243864540,-836.63,0.00019178,2]
[388567813,1759243864550,-1714.02,0.00019178,2]
[388567814,1759243864562,-151.0,0.00019178,2]
[388567815,1759243864572,-1714.02,0.00019178,2]
[388567816,1759243864582,-1714.02,0.00019178,2]
[388567817,1759243864592,-1714.02,0.00019178,2]
[388567818,1759243864603,-188.318043,0.00019178,2]
[388567819,1759243864615,-1714.02,0.00019178,2]
[388567820,1759243864625,-500.0,0.00019178,2]
[388567821,1759243864634,-1714.02,0.00019178,2]
[388567822,1759243864645,-500.0,0.00019178,2]
[388567823,1759243864656,-1714.02,0.00019178,2]
[388567824,1759243864666,-1714.02,0.00019178,2]
[388567825,1759243864676,-500.0,0.00019178,2]
[388567826,1759243864687,-1714.02,0.00019178,2]
[388567827,1759243864697,-1714.02,0.00019178,2]
[388567828,1759243864706,-1714.02,0.00019178,2]
[388567829,1759243864716,-188.318043,0.00019178,2]
[388567830,1759243864726,-6082.65,0.00019178,2]
[388567831,1759243864735,-1714.15480396,0.00019178,2]
[388567832,1759243864747,-500.0,0.00019178,2]
[388567833,1759243864756,-151.0,0.00019178,2]
[388567834,1759243864766,-576.16,0.00019178,2]
[388567835,1759243864775,-500.0,0.00019178,2]
[388567836,1759243864785,-1093.65,0.00019178,2]
[388567837,1759243864795,-4052.2,0.00019178,2]
[388567838,1759243864805,-966.27,0.00019178,2]
[388567839,1759243864815,-3222.59,0.00019178,2]
[388567840,1759243864825,-3187.48,0.00019178,2]
[388567841,1759243864838,-151.0,0.00019178,2]
[388567842,1759243864849,-3908.19,0.00019178,2]
[388567843,1759243864860,-2636.65,0.00019178,2]
[388567844,1759243864870,-590.54,0.00019178,2]
[388567845,1759243864881,-2826.64,0.00019178,2]
[388567846,1759243864892,-11903.05,0.00019178,2]
[388567847,1759243864903,-934.2,0.00019178,2]
[388567848,1759243864914,-4224.68,0.00019178,2]
[388567849,1759243864925,-485.4165663,0.00019178,2]
[388567850,1759243864935,-3680.77,0.00019178,2]
[388567851,1759243864945,-4726.46,0.00019178,2]
[388567852,1759243864956,-500.0,0.00019178,2]
[388567853,1759243864966,-610.04,0.00019178,2]
[388567854,1759243864977,-500.0,0.00019178,2]
[388567855,1759243864988,-10430.65,0.00019178,2]
[388567856,1759243864999,-296.78632892,0.00019178,2]
[388567857,1759243865008,-1072.81,0.00019178,2]
[388567858,1759243865018,-6111.21,0.00019178,2]
[388567859,1759243865028,-986.68,0.00019178,2]
[388567860,1759243865040,-3886.98,0.00019178,2]
[388567861,1759243865049,-727.8,0.00019178,2]
[388567862,1759243865059,-2191.69,0.00019178,2]
[388567863,1759243865069,-151.0,0.00019178,2]
[388567864,1759243865079,-500.0,0.00019178,2]
[388567865,1759243865089,-500.0,0.00019178,2]
[388567866,1759243865099,-1808.36,0.00019178,2]
[388567867,1759243865111,-151.0,0.00019178,2]
[388567868,1759243865121,-500.0,0.00019178,2]
[388567869,1759243865131,-4563.46,0.00019178,2]
[388567870,1759243865141,-3925.81,0.00019178,2]
[388567871,1759243865151,-151.0,0.00019178,2]
[388567872,1759243865160,-151.0,0.00019178,2]
[388567873,1759243865170,-854.6,0.00019178,2]
[388567874,1759243865179,-151.0,0.00019178,2]
[388567875,1759243865190,-1954.41,0.00019178,2]
[388567876,1759243865199,-151.0,0.00019178,2]
[388567877,1759243865208,-166.099171,0.00019178,2]
[388567878,1759243865218,-151.0,0.00019178,2]
[388567879,1759243865228,-151.0,0.00019178,2]
[388567880,1759243865238,-500.0,0.00019178,2]
[388567881,1759243865247,-1491.05,0.00019178,2]
[388567882,1759243865256,-500.0,0.00019178,2]
[388567883,1759243865266,-151.0,0.00019178,2]
[388567884,1759243865275,-8309.91,0.00019178,2]
[388567885,1759243865284,-151.0,0.00019178,2]
[388567886,1759243865294,-3323.26,0.00019178,2]
[388567887,1759243865303,-166.099171,0.00019178,2]
[388567888,1759243865313,-500.0,0.00019178,2]
[388567889,1759243865322,-9367.62,0.00019178,2]
[388567890,1759243865332,-500.0,0.00019178,2]
[388567891,1759243865341,-2895.27,0.00019178,2]
[388567892,1759243865350,-500.0,0.00019178,2]
[388567893,1759243865360,-500.0,0.00019178,2]
[388567894,1759243865369,-4414.46,0.00019178,2]
[388567895,1759243865378,-151.0,0.00019178,2]
[388567896,1759243865388,-1338.26,0.00019178,2]
[388567897,1759243865397,-500.0,0.00019178,2]
[388567898,1759243865406,-151.0,0.00019178,2]
[388567899,1759243865415,-166.099171,0.00019178,2]
[388567900,1759243865425,-151.0,0.00019178,2]
[388567901,1759243865434,-4022.76,0.00019178,2]
[388567902,1759243865443,-500.0,0.00019178,2]
[388567903,1759243865452,-166.099171,0.00019178,2]
[388567904,1759243865461,-215.13327,0.00019178,2]
[388567905,1759243865471,-500.0,0.00019178,2]
[388567906,1759243865480,-151.0,0.00019178,2]
[388567907,1759243865490,-1085.95,0.00019178,2]
[388567908,1759243865501,-4827.63,0.00019178,2]
[388567909,1759243865511,-3442.87,0.00019178,2]
[388567910,1759243865521,-500.0,0.00019178,2]
[388567911,1759243865531,-324.108523,0.00019178,2]
[388567912,1759243865541,-1934.59,0.00019178,2]
[388567913,1759243865551,-151.0,0.00019178,2]
[388567914,1759243865560,-4990.77,0.00019178,2]
[388567915,1759243865570,-500.0,0.00019178,2]
[388567916,1759243865579,-324.108523,0.00019178,2]
[388567917,1759243865589,-526.47,0.00019178,2]
[388567918,1759243865598,-607.84,0.00019178,2]
[388567919,1759243865608,-151.0,0.00019178,2]
[388567920,1759243865617,-2655.24,0.00019178,2]
[388567921,1759243865628,-151.0,0.00019178,2]
[388567922,1759243865637,-324.108523,0.00019178,2]
[388567923,1759243865647,-499.44621469,0.00019178,2]
[388567924,1759243865656,-267.719266,0.00019178,2]
[388567925,1759243865666,-151.0,0.00019178,2]
[388567926,1759243865677,-4001.74,0.00019178,2]
[388567927,1759243865687,-1005.53,0.00019178,2]
[388567928,1759243865696,-656.59,0.00019178,2]
[388567929,1759243865706,-151.0,0.00019178,2]
[388567930,1759243865716,-2703.751123,0.00019178,2]
[388567931,1759243865726,-1382.23,0.00019178,2]
[388567932,1759243865735,-7688.96,0.00019178,2]
[388567933,1759243865744,-324.108523,0.00019178,2]
[388567934,1759243865754,-500.0,0.00019178,2]
[388567935,1759243865763,-3179.64,0.00019178,2]
[388567936,1759243865773,-151.0,0.00019178,2]
[388567937,1759243865783,-2703.751123,0.00019178,2]
[388567938,1759243865792,-5522.62,0.00019178,2]
[388567939,1759243865801,-1155.95,0.00019178,2]
[388567940,1759243865810,-4919.51,0.00019178,2]
[388567941,1759243865819,-500.0,0.00019178,2]
[388567942,1759243865829,-4271.07,0.00019178,2]
[388567943,1759243865839,-1172.72,0.00019178,2]
[388567944,1759243865848,-231.453616,0.00019178,2]
[388567945,1759243865858,-151.0,0.00019178,2]
[388567946,1759243865868,-2703.751123,0.00019178,2]
[388567947,1759243865878,-500.0,0.00019178,2]
[388567948,1759243865889,-1570.13,0.00019178,2]
[388567949,1759243865900,-151.0,0.00019178,2]
[388567950,1759243865910,-863.38,0.00019178,2]
[388567951,1759243865921,-836.43,0.00019178,2]
[388567952,1759243865930,-151.0,0.00019178,2]
[388567953,1759243865940,-151.0,0.00019178,2]
[388567954,1759243865949,-2157.39,0.00019178,2]
[388567955,1759243865958,-2703.751123,0.00019178,2]
[388567956,1759243865968,-2283.42,0.00019178,2]
[388567957,1759243865977,-1045.94,0.00019178,2]
[388567958,1759243865986,-151.0,0.00019178,2]
[388567959,1759243865997,-500.0,0.00019178,2]
[388567960,1759243866010,-3082.09,0.00019178,2]
[388567961,1759243866019,-151.0,0.00019178,2]
[388567962,1759243866027,-151.0,0.00019178,2]
[388567963,1759243866040,-929.49,0.00019178,2]
[388567964,1759243866049,-1954.99,0.00019178,2]
[388567965,1759243866059,-500.0,0.00019178,2]
[388567966,1759243866068,-372.480925,0.00019178,2]
[388567967,1759243866077,-741.60075,0.00019178,2]
[388567968,1759243866087,-1047.73,0.00019178,2]
[388567969,1759243866097,-500.0,0.00019178,2]
[388567970,1759243866107,-151.0,0.00019178,2]
[388567971,1759243866117,-886.09,0.00019178,2]
[388567972,1759243866128,-500.0,0.00019178,2]
[388567973,1759243866137,-372.480925,0.00019178,2]
[388567974,1759243866147,-741.60075,0.00019178,2]
[388567975,1759243866156,-237.071723,0.00019178,2]
[388567976,1759243866165,-1756.99,0.00019178,2]
[388567977,1759243866174,-500.0,0.00019178,2]
[388567978,1759243866182,-151.0,0.00019178,2]
[388567979,1759243866192,-372.480925,0.00019178,2]
[388567980,1759243866201,-4400.59,0.00019178,2]
[388567981,1759243866211,-741.60075,0.00019178,2]
[388567982,1759243866220,-500.0,0.00019178,2]
[388567983,1759243866229,-500.0,0.00019178,2]
[388567984,1759243866238,-2171.4,0.00019178,2]
[388567985,1759243866247,-5730.05,0.00019178,2]
[388567986,1759243866256,-151.0,0.00019178,2]
[388567987,1759243866266,-20780.06,0.00019178,2]
[388567988,1759243866275,-500.0,0.00019178,2]
[388567989,1759243866284,-326.667639,0.00019178,2]
[388567990,1759243866293,-558.7012919,0.00019178,2]
[388567991,1759243866303,-372.480925,0.00019178,2]
[388567992,1759243866312,-741.60075,0.00019178,2]
[388567993,1759243866321,-500.0,0.00019178,2]
[388567994,1759243866330,-863.31,0.00019178,2]
[388567995,1759243866339,-326.667639,0.00019178,2]
[388567996,1759243866349,-2999.63,0.00019178,2]
[388567997,1759243866358,-3304.23,0.00019178,2]
[388567998,1759243866368,-277.80220588,0.00019178,2]
[388567999,1759243866377,-500.0,0.00019178,2]
[388568000,1759243866387,-826.29,0.00019178,2]
[388568001,1759243866396,-326.667639,0.00019178,2]
[388568002,1759243866405,-4502.44,0.00019178,2]
[388568003,1759243866415,-4834.6,0.00019178,2]
[388568004,1759243866426,-719.55,0.00019178,2]
[388568005,1759243866435,-3113.64,0.00019178,2]
[388568006,1759243866444,-676.58,0.00019178,2]
[388568007,1759243866453,-326.667639,0.00019178,2]
[388568008,1759243866462,-500.0,0.00019178,2]
[388568009,1759243866472,-151.0,0.00019178,2]
[388568010,1759243866483,-761.53,0.00019178,2]
[388568011,1759243866492,-990.39,0.00019178,2]
[388568012,1759243866502,-500.0,0.00019178,2]
[388568013,1759243866512,-3406.59,0.00019178,2]
[388568014,1759243866521,-5259.88,0.00019178,2]
[388568015,1759243866531,-2755.02,0.00019178,2]
[388568016,1759243866540,-500.0,0.00019178,2]
[388568017,1759243866550,-3532.55,0.00019178,2]
[388568018,1759243866559,-151.0,0.00019178,2]
[388568019,1759243866569,-663.14,0.00019178,2]
[388568020,1759243866578,-151.79347,0.00019178,2]
[388568021,1759243866588,-151.0,0.00019178,2]
[388568022,1759243866597,-3281.17,0.00019178,2]
[388568023,1759243866607,-151.79347,0.00019178,2]
[388568024,1759243866616,-1068.35,0.00019178,2]
[388568025,1759243866627,-5530.75,0.00019178,2]
[388568026,1759243866636,-151.0,0.00019178,2]
[388568027,1759243866645,-5464.08,0.00019178,2]
[388568028,1759243866655,-500.0,0.00019178,2]
[388568029,1759243866664,-500.0,0.00019178,2]
[388568030,1759243866674,-4398.22,0.00019178,2]
[388568031,1759243866683,-151.79347,0.00019178,2]
[388568032,1759243866693,-5185.96,0.00019178,2]
[388568033,1759243866702,-151.0,0.00019178,2]
[388568034,1759243866712,-611.6,0.00019178,2]
[388568035,1759243866726,-500.0,0.00019178,2]
[388568036,1759243866736,-151.79347,0.00019178,2]
[388568037,1759243866745,-1361.61,0.00019178,2]
[388568038,1759243866756,-589.85,0.00019178,2]
[388568039,1759243866766,-2841.53,0.00019178,2]
[388568040,1759243866775,-500.0,0.00019178,2]
[388568041,1759243866785,-4690.1,0.00019178,2]
[388568042,1759243866793,-5064.26,0.00019178,2]
[388568043,1759243866802,-8170.98,0.00019178,2]
[388568044,1759243866811,-500.0,0.00019178,2]
[388568045,1759243866820,-3481.91,0.00019178,2]
[388568046,1759243866832,-1340.22,0.00019178,2]
[388568047,1759243866847,-3373.16,0.00019178,2]
[388568048,1759243866857,-500.0,0.00019178,2]
[388568049,1759243866866,-500.0,0.00019178,2]
[388568050,1759243866875,-1860.95,0.00019178,2]
[388568051,1759243866884,-1474.11,0.00019178,2]
[388568052,1759243866893,-500.0,0.00019178,2]
[388568053,1759243866903,-1821.92,0.00019178,2]
[388568054,1759243866912,-907.31,0.00019178,2]
[388568055,1759243866921,-500.0,0.00019178,2]
[388568056,1759243866930,-654.98,0.00019178,2]
[388568057,1759243866940,-5298.65,0.00019178,2]
[388568058,1759243866949,-939.77,0.00019178,2]
[388568059,1759243866958,-18492.31,0.00019178,2]
[388568060,1759243866968,-500.0,0.00019178,2]
[388568061,1759243866978,-1268.98,0.00019178,2]
[388568062,1759243866987,-500.0,0.00019178,2]
[388568063,1759243866996,-22451.0,0.00019178,2]
[388568064,1759243867009,-500.0,0.00019178,2]
[388568065,1759243867019,-500.0,0.00019178,2]
[388568066,1759243867028,-550.71,0.00019178,2]
[388568067,1759243867042,-1117.79,0.00019178,2]
[388568068,1759243867051,-500.0,0.00019178,2]
[388568069,1759243867060,-151.0,0.00019178,2]
[388568070,1759243867070,-500.0,0.00019178,2]
[388568071,1759243867080,-6442.41,0.00019178,2]
[388568072,1759243867091,-1186.56,0.00019178,2]
[388568073,1759243867100,-500.0,0.00019178,2]
[388568074,1759243867110,-500.0,0.00019178,2]
[388568075,1759243867121,-2088.79,0.00019178,2]
[388568076,1759243867131,-2523.64,0.00019178,2]
[388568077,1759243867140,-249.806196,0.00019178,2]
[388568078,1759243867150,-500.0,0.00019178,2]
[388568079,1759243867159,-500.0,0.00019178,2]
[388568080,1759243867168,-1429.01,0.00019178,2]
[388568081,1759243867177,-249.806196,0.00019178,2]
[388568082,1759243867186,-500.0,0.00019178,2]
[388568083,1759243867196,-1789.57,0.00019178,2]
[388568084,1759243867205,-151.0,0.00019178,2]
[388568085,1759243867214,-249.806196,0.00019178,2]
[388568086,1759243867223,-3696.96,0.00019178,2]
[388568087,1759243867232,-500.0,0.00019178,2]
[388568088,1759243867241,-19762.18,0.00019178,2]
[388568089,1759243867253,-1451.45,0.00019178,2]
[388568090,1759243867262,-151.0,0.00019178,2]
[388568091,1759243867271,-285.68668877,0.00019178,2]
[388568092,1759243867281,-2124.7,0.00019178,2]
[388568093,1759243867291,-249.806196,0.00019178,2]
[388568094,1759243867301,-500.0,0.00019178,2]
[388568095,1759243867311,-500.0,0.00019178,2]
[388568096,1759243867321,-552.85,0.00019178,2]
[388568097,1759243867330,-151.0,0.00019178,2]
[388568098,1759243867339,-500.0,0.00019178,2]
[388568099,1759243867349,-500.0,0.00019178,2]
[388568100,1759243867358,-500.0,0.00019178,2]
[388568101,1759243867367,-600.59,0.00019178,2]
[388568102,1759243867376,-6781.75,0.00019178,2]
[388568103,1759243867386,-500.0,0.00019178,2]
[388568104,1759243867395,-151.0,0.00019178,2]
[388568105,1759243867404,-151.0,0.00019178,2]
[388568106,1759243867413,-151.0,0.00019178,2]
[388568107,1759243867423,-871.940278,0.00019178,2]
[388568108,1759243867432,-500.0,0.00019178,2]
[388568109,1759243867441,-151.0,0.00019178,2]
[388568110,1759243867450,-931.46,0.00019178,2]
[388568111,1759243867461,-239.38325454,0.00019178,2]
[388568112,1759243867471,-500.0,0.00019178,2]
[388568113,1759243867480,-151.0,0.00019178,2]
[388568114,1759243867490,-1404.94,0.00019178,2]
[388568115,1759243867501,-151.0,0.00019178,2]
[388568116,1759243867511,-500.0,0.00019178,2]
[388568117,1759243867522,-151.0,0.00019178,2]
[388568118,1759243867539,-156.519347,0.00019178,2]
[388568119,1759243867553,-272.66166338,0.00019178,2]
[388568120,1759243867564,-151.0,0.00019178,2]
[388568121,1759243867578,-907.95,0.00019178,2]
[388568122,1759243867593,-151.0,0.00019178,2]
[388568123,1759243867609,-906.34,0.00019178,2]
[388568124,1759243867624,-254.99021,0.00019178,2]
[388568125,1759243867638,-2939.81,0.00019178,2]
[388568126,1759243867650,-151.0,0.00019178,2]
[388568127,1759243867664,-1341.41,0.00019178,2]
[388568128,1759243867678,-533.1,0.00019178,2]
[388568129,1759243867691,-540.5,0.00019178,2]
[388568130,1759243867706,-3571.8,0.00019178,2]
[388568131,1759243867720,-848.11,0.00019178,2]
[388568132,1759243867734,-254.99021,0.00019178,2]
[388568133,1759243867753,-5681.34,0.00019178,2]
[388568134,1759243867767,-500.0,0.00019178,2]
[388568135,1759243867781,-2844.92,0.00019178,2]
[388568136,1759243867795,-500.0,0.00019178,2]
[388568137,1759243867814,-254.99021,0.00019178,2]
[388568138,1759243867830,-2084.859367,0.00019178,2]
[388568139,1759243867845,-2931.23,0.00019178,2]
[388568140,1759243867859,-151.0,0.00019178,2]
[388568141,1759243867872,-500.0,0.00019178,2]
[388568142,1759243867884,-254.99021,0.00019178,2]
[388568143,1759243867903,-2084.859367,0.00019178,2]
[388568144,1759243867919,-3100.53,0.00019178,2]
[388568145,1759243867932,-151.0,0.00019178,2]
[388568146,1759243867944,-2084.859367,0.00019178,2]
[388568147,1759243867955,-8045.861984,0.00019178,2]
[388568148,1759243867968,-500.0,0.00019178,2]
[388568149,1759243867983,-151.0,0.00019178,2]
[388568150,1759243867994,-500.0,0.00019178,2]
[388568151,1759243868009,-3710.9,0.00019178,2]
[388568152,1759243868022,-500.0,0.00019178,2]
[388568153,1759243868036,-871.940278,0.00019178,2]
[388568154,1759243868048,-2723.4,0.00019178,2]
[388568155,1759243868061,-600.129215,0.00019178,2]
[388568156,1759243868074,-500.0,0.00019178,2]
[388568157,1759243868087,-369.687376,0.00019178,2]
[388568158,1759243868100,-500.0,0.00019178,2]
[388568159,1759243868113,-2084.859367,0.00019178,2]
[388568160,1759243868126,-8045.861984,0.00019178,2]
[388568161,1759243868139,-19582.45,0.00019178,2]